bitfinex-derivatives/quotes_ETHF0:USTF0_20250909
["timestamp","ask_amount","ask_price","bid_price","bid_amount"]
[1757380694855,0.33579687,4289.5,4289.4,0.4007]
[1757380695056,0.64119687,4289.5,4289.4,0.6417]
[1757380695255,0.85199687,4289.5,4289.4,0.6417]
[1757380697055,0.85199687,4289.5,4289.4,0.4409]
[1757380697759,0.1188,4289.0,4288.9,3.2078]
[1757380697956,0.8466,4289.0,4288.9,4.85007402]
[1757380698154,0.8466,4289.0,4288.9,5.06217402]
[1757380698857,0.3179,4289.0,4288.9,5.34337402]
[1757380699756,0.3179,4289.4,4288.9,5.06217402]
[1757380699964,0.00349687,4289.5,4289.4,0.6981]
[1757380700259,0.52479687,4289.5,4289.4,0.9391]
[1757380700462,0.85009687,4289.5,4289.4,0.2048]
[1757380700655,0.85009687,4289.5,4289.4,0.241]
[1757380700855,0.85009687,4289.5,4289.4,0.4458]
[1757380701659,0.85009687,4289.5,4289.4,2.13557402]
[1757380701962,0.64359687,4289.5,4289.4,2.13557402]
[1757380702164,0.64359687,4289.5,4289.4,0.9391]
[1757380702355,0.85009687,4289.5,4289.4,0.4169]
[1757380702561,0.85009687,4289.5,4289.4,0.6579]
[1757380702962,0.85009687,4289.5,4289.4,0.4169]
[1757380703166,0.85009687,4289.5,4289.4,0.6579]
[1757380703363,0.85009687,4289.5,4289.4,0.6981]
[1757380703564,0.85009687,4289.5,4289.4,0.9391]
[1757380704964,0.00349687,4289.5,4289.4,0.9391]
[1757380705565,0.4367,4288.5,4288.4,3.2078]
[1757380705867,0.8466,4288.5,4288.4,0.4458]
[1757380706262,0.8466,4288.5,4288.4,0.9391]
[1757380706664,0.8466,4288.5,4288.4,0.6579]
[1757380708265,0.8466,4288.5,4287.9,0.2048]
[1757380708266,0.8466,4288.0,4287.9,0.2048]
[1757380708465,0.8466,4288.0,4287.9,0.241]
[1757380708466,0.9632,4288.0,4287.9,0.241]
[1757380708762,0.3179,4287.9,4287.8,0.2048]
[1757380708960,0.3179,4287.9,4287.2,0.2812]
[1757380708961,0.5213,4287.2,4287.1,3.6247]
[1757380709161,0.7278,4287.2,4287.1,4.82117402]
[1757380709465,0.7278,4287.2,4287.1,4.64627402]
[1757380709664,0.7278,4287.2,4287.1,4.85107402]
[1757380709862,0.7278,4287.2,4287.1,3.2078]
[1757380710062,0.7278,4287.2,4287.1,4.85107402]
[1757380710869,0.7278,4287.2,4287.1,5.06317402]
[1757380711071,0.7278,4287.2,4287.1,5.34387402]
[1757380711267,0.5213,4287.2,4287.1,4.1474]
[1757380711467,0.5213,4287.2,4287.1,5.34387402]
[1757380711869,0.5213,4287.2,4287.1,4.1474]
[1757380712177,0.5213,4287.2,4287.1,5.06317402]
[1757380712470,0.7278,4287.2,4287.1,3.8667]
[1757380713064,0.7278,4287.2,4287.1,3.6247]
[1757380713272,0.7278,4287.2,4287.1,3.6536]
[1757380713471,0.7278,4287.2,4287.1,3.8657]
[1757380713965,0.7278,4287.2,4287.1,5.06217402]
[1757380714170,0.7278,4287.2,4287.1,5.34287402]
[1757380714573,0.3179,4287.2,4287.1,5.34287402]
[1757380715073,0.3179,4287.4,4287.1,5.06217402]
[1757380715267,0.5213,4287.9,4287.8,0.4169]
[1757380715570,0.5213,4287.9,4287.8,0.6579]
[1757380715974,0.1166,4288.0,4287.9,0.6976]
[1757380716175,0.7567,4288.0,4287.9,0.6976]
[1757380716362,0.9632,4288.0,4287.9,0.6579]
[1757380716567,0.9632,4288.0,4287.9,0.4169]
[1757380716769,0.9632,4288.0,4287.9,0.6579]
[1757380716968,0.9632,4288.0,4287.9,0.4458]
[1757380717165,0.6379,4288.0,4287.9,0.9386]
[1757380717472,0.4345,4288.0,4287.9,0.9386]
[1757380717975,0.7567,4288.0,4287.9,0.6579]
[1757380718271,0.9632,4288.0,4287.9,0.6579]
[1757380719573,0.7567,4288.0,4287.9,0.9386]
[1757380720179,0.1166,4288.0,4287.9,0.9386]
[1757380720476,0.1166,4288.0,4287.9,5.17181]
[1757380720672,0.1166,4288.0,4287.9,4.9386]
[1757380722471,0.53633,4288.0,4287.9,4.9386]
[1757380722673,0.53633,4288.0,4287.9,6.13507402]
[1757380722874,0.85423,4288.0,4287.9,6.13507402]
[1757380724079,0.53633,4288.0,4287.9,6.13507402]
[1757380725083,1.0,4288.5,4288.4,0.5806]
[1757380725284,1.41968,4288.5,4288.4,38.81987402]
[1757380725583,1.25598,4288.5,4288.4,40.48543395]
[1757380725884,0.3179,4289.4,4288.4,44.08582804]
[1757380726078,0.4099,4289.4,4288.6,1.67054046]
[1757380726285,0.5147,4288.9,4288.7,3.2078]
[1757380726580,0.5147,4288.9,4288.8,33.834]
[1757380726780,0.3102,4288.9,4288.8,33.834]
[1757380727082,0.12229687,4289.5,4288.8,33.834]
[1757380727379,0.3102,4289.4,4288.8,33.834]
[1757380727682,0.3102,4288.9,4288.8,33.834]
[1757380728584,0.3102,4288.9,4288.8,38.23827402]
[1757380729692,0.1188,4289.0,4288.8,38.23827402]
[1757380729880,0.3102,4289.3,4288.8,38.23827402]
[1757380730075,0.43249687,4289.5,4289.2,1.19647402]
[1757380730380,0.43249687,4289.5,4289.4,3.2078]
[1757380730883,0.00349687,4289.5,4289.4,3.2078]
[1757380731785,0.31369687,4289.5,4289.4,3.2078]
[1757380731981,0.00349687,4289.5,4289.4,3.2078]
[1757380732487,0.43249687,4289.5,4289.4,4.64527402]
[1757380733186,0.64759687,4289.5,4289.4,4.64527402]
[1757380733388,0.00349687,4289.5,4289.4,4.64527402]
[1757380733892,0.43249687,4289.5,4289.4,4.40427402]
[1757380734092,0.43249687,4289.5,4289.4,4.64527402]
[1757380734786,0.64759687,4289.5,4289.4,4.40427402]
[1757380734985,0.64759687,4289.5,4289.4,4.64527402]
[1757380735502,0.43249687,4289.5,4289.4,4.64527402]
[1757380735792,0.00349687,4289.5,4289.4,4.64527402]
[1757380735990,0.43249687,4289.5,4289.4,4.64527402]
[1757380736288,0.00349687,4289.5,4289.4,4.64527402]
[1757380737985,0.1188,4290.0,4289.4,8.64527402]
[1757380738291,0.3339,4290.5,4289.9,5.60074804]
[1757380738591,0.8486,4290.5,4290.4,4.40427402]
[1757380739090,0.8486,4290.5,4290.4,4.64427402]
[1757380739290,0.6441,4290.5,4290.4,4.64427402]
[1757380739484,0.3102,4290.9,4290.4,37.98927402]
[1757380739792,0.7298,4290.9,4290.8,1.19647402]
[1757380739980,0.7298,4290.9,4290.8,1.43647402]
[1757380740791,0.5253,4290.9,4290.8,1.43647402]
[1757380741290,0.7298,4290.9,4290.8,1.43647402]
[1757380744296,0.7298,4290.9,4290.8,1.19647402]
[1757380744491,0.7298,4290.9,4290.8,1.43647402]
[1757380745099,0.7298,4290.9,4290.8,1.19647402]
[1757380745297,0.6441,4290.0,4289.9,36.7878]
[1757380745497,0.8486,4290.0,4289.9,38.22427402]
[1757380745791,0.8486,4290.0,4289.9,3.2078]
[1757380745993,0.8486,4290.0,4289.9,4.40427402]
[1757380746296,0.8486,4290.0,4289.9,4.64427402]
[1757380746690,0.8486,4290.0,4289.9,4.40427402]
[1757380747087,0.8486,4290.0,4289.9,4.64427402]
[1757380747995,0.8486,4290.0,4289.9,5.84074804]
[1757380747996,0.429,4290.0,4289.9,5.84074804]
[1757380748898,0.429,4290.0,4289.9,4.64427402]
[1757380749200,0.429,4290.0,4288.6,0.18974954]
[1757380749201,0.3102,4289.9,4288.4,3.5283]
[1757380749391,0.8486,4288.5,4288.4,3.4085]
[1757380749593,0.1188,4289.0,4288.4,5.38147402]
[1757380749904,0.5384,4289.0,4288.9,0.2007]
[1757380750094,0.5384,4289.0,4288.9,1.63817402]
[1757380750395,0.8486,4289.0,4288.9,0.4417]
[1757380751997,0.8486,4289.0,4288.9,0.6567]
[1757380754197,0.8486,4289.0,4288.9,3.6235]
[1757380754393,0.8486,4289.0,4288.9,1.74756073]
[1757380754593,0.3102,4288.9,4288.5,1.50756073]
[1757380754796,0.3102,4288.9,4288.5,1.92326073]
[1757380755000,0.3102,4288.9,4288.8,0.7362]
[1757380755195,0.3102,4289.4,4288.8,0.9762]
[1757380755397,0.7298,4289.3,4289.2,1.70826073]
[1757380755597,0.7298,4289.3,4289.2,1.94826073]
[1757380755798,0.7298,4289.3,4289.2,2.16326073]
[1757380756194,0.7298,4289.3,4289.2,1.94826073]
[1757380756400,0.7298,4289.3,4289.2,0.24]
[1757380757904,0.1219,4289.0,4288.8,1.50756073]
[1757380758104,0.835,4289.0,4288.9,0.24]
[1757380758496,0.835,4289.0,4288.9,0.4538]
[1757380761206,0.835,4289.0,4288.9,0.6545]
[1757380761908,0.835,4289.0,4288.9,0.4538]
[1757380762109,0.835,4289.0,4288.9,0.978]
[1757380762504,0.3017,4289.0,4288.9,0.978]
[1757380762701,3.2078,4289.5,4289.0,0.4314]
[1757380762906,0.5028,4289.9,4289.8,0.738]
[1757380763109,0.5028,4289.9,4289.8,0.6545]
[1757380763110,0.7131,4289.9,4289.8,0.6545]
[1757380764007,0.3017,4290.4,4289.8,0.978]
[1757380764308,0.5028,4290.4,4290.3,2.24556073]
[1757380764512,0.1219,4291.0,4290.5,0.738]
[1757380764700,0.3017,4290.9,4290.8,0.738]
[1757380764900,0.5028,4290.9,4290.8,0.978]
[1757380765912,0.7131,4290.9,4290.8,0.6545]
[1757380766119,0.7131,4290.9,4290.8,0.4538]
[1757380767114,0.7131,4290.9,4290.4,1.50756073]
[1757380767310,0.1219,4291.0,4290.4,0.2138]
[1757380767311,0.835,4290.5,4290.4,0.2138]
[1757380767504,0.835,4290.5,4290.4,0.4145]
[1757380768014,0.835,4290.5,4290.4,0.6545]
[1757380768211,0.835,4290.5,4290.4,0.738]
[1757380768212,0.6247,4290.5,4290.4,0.738]
[1757380768412,0.835,4290.5,4290.4,0.6545]
[1757380769115,0.835,4290.5,4290.4,0.978]
[1757380769518,0.835,4290.5,4290.4,0.6545]
[1757380770022,0.835,4290.5,4290.4,0.4538]
[1757380770208,0.835,4290.5,4290.4,0.4145]
[1757380770412,0.835,4290.5,4290.4,0.6545]
[1757380770712,0.835,4290.5,4290.4,0.4538]
[1757380771117,0.835,4290.5,4290.4,0.6545]
[1757380771420,0.835,4290.5,4290.4,0.4145]
[1757380771620,0.6247,4290.5,4290.4,0.978]
[1757380771813,0.5028,4290.5,4290.4,0.978]
[1757380772310,3.2078,4291.2,4291.1,0.4145]
[1757380772511,3.2078,4291.8,4291.2,0.3235]
[1757380772820,0.3017,4292.2,4291.9,0.4145]
[1757380773016,3.6192,4292.3,4292.2,0.2138]
[1757380773525,3.9209,4292.3,4292.2,0.2138]
[1757380773908,0.3017,4292.2,4291.4,1.50756073]
[1757380774116,0.5028,4291.5,4291.4,1.92206073]
[1757380774429,0.6247,4292.0,4291.9,0.4145]
[1757380774628,0.6247,4292.0,4291.9,2.48556073]
[1757380774922,0.5028,4292.0,4291.9,2.48556073]
[1757380775823,0.3017,4292.2,4292.1,0.738]
[1757380776017,0.3017,4292.2,4292.1,0.978]
[1757380777116,0.5028,4292.2,4292.1,0.978]
[1757380777425,3.2078,4292.3,4292.2,0.738]
[1757380777925,0.5028,4292.9,4292.8,0.4145]
[1757380778225,0.5028,4292.9,4292.8,0.6545]
[1757380779024,3.2078,4293.0,4292.8,0.978]
[1757380779231,0.1219,4293.5,4293.4,0.738]
[1757380779232,0.5028,4293.5,4293.4,0.738]
[1757380779422,0.835,4293.5,4293.4,0.6545]
[1757380779816,0.835,4293.0,4292.9,33.9855]
[1757380780018,4.0428,4293.0,4292.9,0.4538]
[1757380780219,0.835,4293.0,4292.9,0.4538]
[1757380780623,0.835,4293.0,4292.9,0.6545]
[1757380782527,0.835,4293.0,4292.7,33.571]
[1757380782528,0.4114,4292.8,4292.7,33.571]
[1757380782717,0.7131,4292.8,4292.7,33.811]
[1757380783625,0.5028,4292.8,4292.7,34.1345]
[1757380784415,3.2078,4293.0,4292.9,0.4145]
[1757380784619,3.2078,4293.0,4292.9,0.738]
[1757380784923,3.2078,4293.0,4292.9,0.978]
[1757380785323,0.1219,4293.5,4292.9,0.6545]
[1757380785527,0.5028,4293.4,4293.3,0.4145]
[1757380785826,0.5028,4293.4,4293.3,0.6545]
[1757380786026,0.7131,4293.4,4293.3,0.6545]
[1757380787127,0.7131,4293.4,4293.3,0.9638]
[1757380787326,0.5028,4293.4,4293.3,0.9638]
[1757380788026,0.5028,4293.4,4293.3,0.6545]
[1757380788723,0.5028,4293.4,4293.3,0.9638]
[1757380790128,0.7192,4293.4,4293.3,0.6545]
[1757380791024,0.7192,4293.4,4293.3,0.9638]
[1757380791723,0.5028,4293.4,4293.3,0.9638]
[1757380792216,0.7192,4293.4,4293.3,0.6545]
[1757380792632,0.7192,4293.4,4293.3,0.2138]
[1757380792931,0.8422,4293.0,4292.9,0.211]
[1757380793130,0.7243,4293.8,4293.7,0.4225]
[1757380793330,0.7243,4293.8,4293.7,0.239]
[1757380795723,0.7243,4293.8,4293.7,0.24]
[1757380797319,0.3076,4293.7,4292.8,3.2078]
[1757380797521,0.3076,4292.8,4292.7,33.8803]
[1757380797830,0.3076,4292.8,4292.7,34.1203]
[1757380798332,0.6258,4293.0,4292.9,0.7318]
[1757380799832,0.3076,4293.0,4292.9,1.01928231]
[1757380800033,0.6258,4293.5,4293.4,0.4225]
[1757380800232,4.05,4293.5,4293.4,0.52748231]
[1757380800432,4.27069343,4293.5,4293.4,0.24]
[1757380800730,4.27069343,4293.5,4292.9,1.50465916]
[1757380800731,0.8422,4293.0,4292.9,1.71565916]
[1757380800930,0.8422,4293.0,4292.9,2.2433268]
[1757380801726,3.3257,4293.5,4293.0,0.3093]
[1757380801727,0.3076,4293.4,4293.0,0.3093]
[1757380801934,0.5079,4293.4,4293.3,2.23645916]
[1757380802131,1.03725456,4293.4,4293.3,2.7641268]
[1757380802634,0.5079,4293.4,4293.3,2.7641268]
[1757380803027,0.5079,4293.9,4293.8,0.4225]
[1757380803334,0.7243,4293.9,4293.8,2.4548268]
[1757380804333,0.7243,4293.9,4293.8,0.71016764]
[1757380804636,0.7243,4293.9,4293.8,0.95016764]
[1757380805139,1.25412511,4293.9,4293.8,0.52766764]
[1757380806035,1.25412511,4293.9,4293.8,0.73866764]
[1757380806238,1.25412511,4293.9,4293.8,2.4548268]
[1757380806836,1.25412511,4293.9,4293.8,2.45577109]
[1757380807037,1.25412511,4293.9,4293.8,2.21577109]
[1757380807232,1.25412511,4293.9,4293.8,2.45577109]
[1757380807431,1.25412511,4293.9,4293.8,0.71111193]
[1757380807632,1.25412511,4293.9,4293.8,0.95111193]
[1757380807932,1.25412511,4293.9,4293.8,0.73961193]
[1757380808139,1.25412511,4293.9,4293.8,0.28861193]
[1757380808444,1.25412511,4293.9,4293.8,0.52861193]
[1757380809531,1.25412511,4293.9,4292.9,3.2078]
[1757380809532,0.1179,4293.0,4292.5,1.67028563]
[1757380809733,0.7243,4292.6,4292.5,0.4225]
[1757380809935,0.7243,4292.6,4292.5,0.6625]
[1757380810141,0.7243,4292.6,4292.5,0.4225]
[1757380810442,0.7243,4292.6,4292.5,1.85703485]
[1757380811228,0.7243,4292.6,4292.5,0.211]
[1757380811433,0.7243,4292.3,4292.2,1.40553485]
[1757380811633,0.7243,4292.3,4292.2,1.64553485]
[1757380812039,0.7243,4292.3,4292.2,1.64453485]
[1757380812234,0.7243,4292.3,4292.2,1.85603485]
[1757380818739,3.3257,4292.5,4292.3,0.3074]
[1757380818948,3.8557,4292.5,4292.4,0.7375]
[1757380819643,4.0638,4292.5,4292.4,0.7375]
[1757380819844,0.6479,4292.5,4292.4,0.7375]
[1757380820043,0.318,4292.9,4292.4,0.4301]
[1757380820244,0.7381,4292.9,4292.8,1.41013485]
[1757380820446,0.7381,4292.9,4292.8,1.62463485]
[1757380821745,0.7381,4292.9,4292.8,1.41013485]
[1757380822049,0.7381,4292.9,4292.8,1.64913485]
[1757380822247,0.7381,4292.9,4292.8,0.239]
[1757380823540,0.212,4292.8,4292.5,0.3074]
[1757380823744,0.4201,4292.6,4292.5,0.4301]
[1757380823946,0.4201,4292.6,4292.5,0.6691]
[1757380824250,0.7381,4292.6,4292.5,0.6691]
[1757380824851,0.7381,4292.6,4292.5,1.86363485]
[1757380825347,0.7381,4292.6,4292.5,2.17103485]
[1757380825553,0.7381,4292.6,4292.5,1.86363485]
[1757380827965,0.7381,4292.6,4292.5,1.64913485]
[1757380830966,0.7381,4292.6,4292.5,1.86363485]
[1757380831261,0.7381,4292.6,4292.5,2.17103485]
[1757380831461,0.7381,4292.6,4292.5,1.86363485]
[1757380832564,0.7381,4292.6,4292.5,0.4301]
[1757380832767,0.7381,4292.6,4292.5,1.86363485]
[1757380832967,0.318,4292.6,4292.5,2.17103485]
[1757380833671,0.7381,4292.9,4292.8,0.4301]
[1757380833870,0.7381,4292.9,4292.5,0.239]
[1757380834064,0.7381,4292.9,4292.8,1.19453485]
[1757380834861,0.318,4292.8,4291.8,0.3074]
[1757380835064,0.7381,4291.9,4291.8,1.62463485]
[1757380835265,0.318,4291.8,4291.1,3.2078]
[1757380835463,0.7381,4291.2,4291.1,3.4234]
[1757380835664,0.7381,4291.2,4291.1,5.13983485]
[1757380835869,0.7381,4291.2,4291.1,5.37783485]
[1757380836469,0.7381,4291.2,4291.1,5.07043485]
[1757380836968,0.7381,4291.2,4291.1,5.37783485]
[1757380837169,0.53,4291.2,4291.1,5.37783485]
[1757380837368,0.318,4291.2,4291.1,5.37783485]
[1757380837670,0.318,4291.4,4291.3,0.4301]
[1757380837873,0.53,4291.4,4291.3,1.93203485]
[1757380838467,3.2078,4291.7,4291.4,0.3074]
[1757380838674,3.5258,4292.2,4292.1,0.7375]
[1757380838975,3.2078,4292.2,4292.1,2.17003485]
[1757380839269,0.53,4292.4,4292.3,0.7375]
[1757380839475,0.318,4292.4,4292.3,1.93203485]
[1757380839667,3.2078,4292.7,4292.3,1.93203485]
[1757380839868,3.7378,4292.7,4292.6,1.93203485]
[1757380840067,3.7378,4292.7,4292.6,2.17103485]
[1757380840371,3.5258,4292.7,4292.6,2.17103485]
[1757380840570,0.318,4292.7,4292.6,2.17103485]
[1757380841075,0.53,4292.7,4292.6,2.17103485]
[1757380841271,0.7381,4292.7,4292.6,2.17103485]
[1757380841569,0.7381,4292.7,4292.6,1.86363485]
[1757380842969,0.7381,4292.7,4292.6,0.238]
[1757380843875,0.7381,4292.4,4292.3,1.41013485]
[1757380844076,0.7381,4292.4,4292.3,1.64813485]
[1757380845274,3.2078,4292.8,4292.7,0.4301]
[1757380845476,3.4198,4292.8,4292.7,2.17003485]
[1757380845672,3.6279,4292.8,4292.7,2.17003485]
[1757380845875,4.47530735,4292.8,4292.7,0.238]
[1757380847075,0.8775,4292.5,4292.4,1.19453485]
[1757380847380,0.8775,4292.5,4292.4,0.238]
[1757380848381,0.8775,4292.5,4292.4,1.62993485]
[1757380848577,0.8775,4292.5,4292.4,1.39193485]
[1757380848782,0.8775,4292.5,4292.4,1.62993485]
[1757380849383,0.8775,4292.5,4292.4,1.43253485]
[1757380850683,0.8775,4292.5,4292.4,0.238]
[1757380851483,0.8775,4292.5,4292.2,1.19453485]
[1757380851680,0.8775,4292.5,4291.6,33.563]
[1757380851681,0.3244,4291.7,4291.6,33.563]
[1757380851985,0.4307,4291.7,4291.6,1.60173485]
[1757380852485,0.7551,4291.7,4291.6,1.60173485]
[1757380852685,0.7551,4291.7,4291.6,1.39193485]
[1757380855376,0.7551,4291.4,4291.3,1.19453485]
[1757380855581,0.7551,4291.4,4291.3,1.39193485]
[1757380855781,0.7551,4291.4,4291.3,1.62993485]
[1757380856983,0.7551,4291.4,4291.3,1.83973485]
[1757380857178,0.7551,4291.4,4291.3,2.14453485]
[1757380859087,0.5402,4291.4,4291.3,2.14453485]
[1757380859584,0.7551,4291.4,4291.3,1.83973485]
[1757380859985,0.3244,4291.4,4291.3,2.14453485]
[1757380860577,0.5402,4291.4,4291.3,2.14453485]
[1757380860986,0.5402,4291.4,4291.3,1.90653485]
[1757380861287,0.7551,4291.4,4291.3,1.62993485]
[1757380861583,0.7551,4291.4,4291.3,0.1974]
[1757380865182,0.4307,4291.1,4291.0,1.19453485]
[1757380865381,0.1224,4291.5,4290.6,0.3048]
[1757380865382,0.7551,4290.7,4290.6,0.1974]
[1757380865587,0.7551,4290.7,4290.2,3.2078]
[1757380865588,0.3244,4290.6,4290.2,3.2078]
[1757380865785,0.7551,4290.4,4290.3,2.14453485]
[1757380866189,3.2078,4290.6,4290.3,1.60173485]
[1757380866487,3.5322,4290.6,4290.5,0.712]
[1757380866986,0.8775,4290.5,4290.4,0.1974]
[1757380867182,0.4307,4290.3,4290.2,1.39193485]
[1757380867378,0.3244,4290.4,4290.0,1.19453485]
[1757380867589,0.7551,4290.2,4290.1,0.238]
[1757380867989,0.7551,4290.2,4290.1,0.4354]
[1757380871588,0.7551,4290.2,4290.1,0.1974]
[1757380872494,0.1224,4290.0,4289.5,1.50685503]
[1757380872699,0.7551,4289.4,4289.3,0.4072]
[1757380872996,0.5402,4289.4,4289.3,0.95]
[1757380873892,0.3244,4289.8,4289.3,0.95]
[1757380874098,0.7551,4289.8,4289.7,0.4072]
[1757380874596,3.2078,4289.9,4289.7,0.95]
[1757380874785,3.748,4289.9,4289.8,0.712]
[1757380875196,3.5322,4289.9,4289.8,0.712]
[1757380875593,3.2078,4289.9,4289.8,0.712]
[1757380875792,3.5322,4289.9,4289.8,0.712]
[1757380876790,3.5322,4289.9,4289.8,0.95]
[1757380876993,3.5109,4289.9,4289.8,0.95]
[1757380877192,3.2078,4289.9,4289.8,0.95]
[1757380878697,3.5109,4290.5,4290.4,0.4299]
[1757380878896,0.6152,4290.7,4290.6,0.4299]
[1757380879102,0.8118,4290.7,4290.6,0.6679]
[1757380880101,0.8118,4290.7,4290.6,0.238]
[1757380880489,0.8118,4290.7,4290.0,1.82515503]
[1757380880490,3.7165,4290.7,4290.0,1.82515503]
[1757380880695,3.9031,4290.1,4290.0,1.50685503]
[1757380881004,3.9031,4290.1,4289.3,0.3183]
[1757380881005,0.4987,4289.4,4289.3,0.7482]
[1757380881194,0.4987,4289.4,4289.3,0.9862]
[1757380881595,0.1255,4290.0,4289.3,0.9862]
[1757380882100,0.3922,4289.8,4289.7,1.72135503]
[1757380882305,0.6953,4289.8,4289.7,1.95935503]
[1757380883602,0.6953,4289.8,4289.7,2.17475503]
[1757380884293,0.3922,4289.8,4289.1,3.2078]
[1757380884493,0.5177,4289.5,4289.4,1.72135503]
[1757380884696,0.8208,4289.5,4289.4,1.72135503]
[1757380884896,0.8208,4289.5,4289.4,1.93675503]
[1757380885100,0.4987,4289.5,4289.4,2.25505503]
[1757380885304,0.3031,4289.5,4289.4,2.25505503]
[1757380885501,0.8208,4289.5,4289.4,1.93675503]
[1757380885910,0.8208,4289.5,4289.4,2.25505503]
[1757380886207,0.6242,4289.5,4289.4,2.25505503]
[1757380886906,0.8208,4289.5,4289.4,1.93675503]
[1757380887106,0.8208,4289.5,4289.4,2.25505503]
[1757380887300,0.6242,4289.5,4289.4,2.25505503]
[1757380887798,0.3031,4289.5,4289.4,2.25505503]
[1757380888301,0.7407,4289.5,4289.4,2.49305503]
[1757380888503,0.9373,4289.5,4289.4,2.49305503]
[1757380888905,0.9373,4289.5,4289.4,2.25505503]
[1757380889208,0.9373,4289.5,4289.4,2.49305503]
[1757380889409,0.7407,4289.5,4289.4,2.49305503]
[1757380889608,0.6152,4289.5,4289.4,2.49305503]
[1757380891102,0.1165,4289.5,4289.4,2.25505503]
[1757380891304,0.1165,4289.5,4289.4,2.49305503]
[1757380893606,0.1165,4289.5,4289.4,2.25505503]
[1757380893808,0.1165,4289.5,4289.4,2.49305503]
[1757380894011,0.1165,4289.5,4289.4,6.49305503]
[1757380894712,0.1165,4289.5,4289.4,6.25505503]
[1757380894921,3.4034,4290.7,4289.5,0.2085]
[1757380895206,3.4034,4290.7,4290.6,0.4299]
[1757380895207,3.6,4290.7,4290.6,0.4299]
[1757380895402,3.6,4290.7,4290.6,0.4525]
[1757380895608,3.9031,4290.7,4290.6,0.238]
[1757380895807,3.9031,4290.7,4288.8,2.92299986]
[1757380895808,0.3922,4289.8,4289.7,1.88885124]
[1757380896007,0.6953,4289.8,4289.7,0.4525]
[1757380896708,0.6953,4289.8,4289.7,0.6679]
[1757380897011,0.4987,4289.8,4289.7,0.8764]
[1757380897314,0.3031,4289.8,4289.7,0.8764]
[1757380899506,0.4286,4290.0,4289.8,0.2085]
[1757380899715,0.3211,4290.5,4290.4,0.4299]
[1757380900013,0.3211,4290.5,4290.4,2.38325503]
[1757380900412,0.6242,4290.5,4290.4,2.38325503]
[1757380901310,0.3031,4290.9,4290.6,0.2085]
[1757380901514,0.3031,4290.9,4290.8,2.14525503]
[1757380901906,3.2078,4291.2,4291.1,0.4299]
[1757380902211,0.4286,4291.5,4291.4,0.4299]
[1757380902410,3.2078,4292.1,4291.4,2.38325503]
[1757380902611,3.2078,4292.1,4292.0,0.6384]
[1757380902812,0.3031,4292.4,4292.3,0.6384]
[1757380903017,0.3031,4292.4,4292.3,2.38325503]
[1757380903816,3.2078,4292.8,4292.4,0.2085]
[1757380904012,3.2078,4292.8,4292.7,0.4299]
[1757380904013,3.4034,4292.8,4292.7,0.4299]
[1757380904315,0.5177,4293.0,4292.7,1.74485503]
[1757380904521,0.6953,4292.4,4292.3,0.2145]
[1757380904712,0.6953,4292.4,4292.3,0.6679]
[1757380905322,0.4987,4292.4,4292.3,0.8764]
[1757380906414,0.4987,4292.4,4292.3,0.6384]
[1757380906614,0.4987,4292.4,4292.3,0.8764]
[1757380906815,0.6964,4292.4,4292.3,0.6679]
[1757380907519,0.3223,4292.7,4292.4,0.2082]
[1757380907727,0.5199,4292.7,4292.6,1.91505503]
[1757380908215,0.3223,4292.7,4292.6,2.12325503]
[1757380908421,0.1255,4293.0,4292.6,1.91505503]
[1757380908422,0.3223,4292.9,4292.6,1.91505503]
[1757380908610,0.3223,4292.9,4292.8,0.6164]
[1757380908813,0.3223,4292.9,4292.8,0.8544]
[1757380909017,3.5301,4293.4,4293.1,0.4082]
[1757380909220,3.5301,4293.4,4292.8,3.4458]
[1757380909221,3.7277,4293.9,4293.8,0.4082]
[1757380909419,3.7277,4293.9,4293.8,2.36125503]
[1757380909420,3.2078,4293.9,4293.8,2.36125503]
[1757380909614,0.1176,4294.5,4293.8,5.36085503]
[1757380909821,0.5199,4294.3,4294.2,1.91505503]
[1757380910022,0.5199,4294.3,4294.2,2.36125503]
[1757380910221,0.1176,4294.5,4294.2,2.36125503]
[1757380910524,0.5199,4294.3,4294.2,2.12325503]
[1757380910723,0.5199,4294.3,4294.2,2.36125503]
[1757380910921,0.5199,4294.3,4294.2,2.12325503]
[1757380911224,0.5199,4294.3,4294.2,2.36125503]
[1757380912326,0.5199,4294.3,4294.2,0.8544]
[1757380913226,0.3223,4294.3,4294.2,0.8544]
[1757380913624,0.1176,4295.0,4294.2,0.8544]
[1757380913625,0.1176,4295.0,4294.4,0.4082]
[1757380913818,0.1176,4295.0,4294.2,0.238]
[1757380913819,0.5199,4294.9,4294.8,0.4082]
[1757380914021,0.3223,4295.1,4295.0,0.2082]
[1757380914225,0.3223,4295.1,4295.0,0.6164]
[1757380916626,0.5199,4295.1,4295.0,0.6164]
[1757380918025,0.3223,4295.1,4295.0,0.6164]
[1757380918826,0.5199,4295.1,4295.0,0.6164]
[1757380919823,0.5199,4295.1,4295.0,0.4082]
[1757380920221,0.3953,4294.7,4294.6,0.211]
[1757380920423,0.7176,4294.7,4294.6,0.449]
[1757380920622,0.3223,4294.6,4294.0,3.416]
[1757380920820,0.7176,4294.2,4294.1,0.449]
[1757380921217,0.7176,4294.2,4294.1,0.6462]
[1757380923924,0.3223,4294.1,4294.0,3.2078]
[1757380924129,0.7176,4293.9,4293.8,3.2078]
[1757380924325,0.7176,4293.9,4293.8,3.4458]
[1757380924528,0.7176,4293.9,4293.8,0.238]
[1757380924529,4.7176,4293.9,4293.8,0.238]
[1757380924735,4.7176,4293.9,4293.3,3.2078]
[1757380924736,0.7176,4293.4,4293.3,3.2078]
[1757380924936,0.7176,4293.4,4293.3,3.4458]